[Event "Late-Titled-Tuesday-Blitz-July-09-2024"]
[Site "Chess.com"]
[Date "2024.07.09"]
[Round "6"]
[White "bob1263"]
[Black "CarlosjPineror"]
[Result "1-0"]
[WhiteElo "2535"]
[BlackElo "2668"]
[TimeControl "180+1"]
[EndTime "15:02:24 PDT"]
[Termination "bob1263 won by resignation"]

1. d4 {[%clk 0:02:59.2]} 1... Nf6 {[%clk 0:02:59.8]} 2. c4 {[%clk 0:02:57.9]}
2... d6 {[%clk 0:02:59.6]} 3. Nc3 {[%clk 0:02:56.2]} 3... e5 {[%clk 0:02:59.8]}
4. Nf3 {[%clk 0:02:55.3]} 4... e4 {[%clk 0:02:59.7]} 5. Ng5 {[%clk 0:02:48.5]}
5... Qd7 {[%clk 0:02:58.7]} 6. Ngxe4 {[%clk 0:02:42.5]} 6... Be7 {[%clk
0:02:57.9]} 7. g3 {[%clk 0:02:37.6]} 7... O-O {[%clk 0:02:57.6]} 8. Bg2 {[%clk
0:02:37.1]} 8... Ne8 {[%clk 0:02:58.3]} 9. O-O {[%clk 0:02:35.6]} 9... f5 {[%clk
0:02:58.8]} 10. Ng5 {[%clk 0:02:32.7]} 10... c6 {[%clk 0:02:57.7]} 11. d5 {[%clk
0:02:24.3]} 11... c5 {[%clk 0:02:57.2]} 12. Ne6 {[%clk 0:02:22.8]} 12... Rf7
{[%clk 0:02:54.4]} 13. e4 {[%clk 0:02:22]} 13... fxe4 {[%clk 0:02:49.8]} 14.
Nxe4 {[%clk 0:02:21.2]} 14... h6 {[%clk 0:02:48.9]} 15. Bh3 {[%clk 0:02:13.6]}
15... Nc7 {[%clk 0:02:46.4]} 16. N6g5 {[%clk 0:02:11.6]} 16... Qxh3 {[%clk
0:02:45.6]} 17. Nxh3 {[%clk 0:02:10.7]} 17... Bxh3 {[%clk 0:02:46.5]} 18. Qh5
{[%clk 0:02:01.8]} 18... Bxf1 {[%clk 0:02:43]} 19. Kxf1 {[%clk 0:02:01.6]} 19...
Nd7 {[%clk 0:02:41.9]} 20. Bf4 {[%clk 0:01:56.7]} 20... Raf8 {[%clk 0:02:42.3]}
21. Kg1 {[%clk 0:01:52]} 21... Nf6 {[%clk 0:02:42.1]} 22. Nxf6+ {[%clk
0:01:51.2]} 22... Rxf6 {[%clk 0:02:43]} 23. Re1 {[%clk 0:01:49.2]} 23... R8f7
{[%clk 0:02:43.5]} 24. Re2 {[%clk 0:01:46.3]} 24... Kf8 {[%clk 0:02:43.6]} 25.
b3 {[%clk 0:01:43.9]} 25... Ne8 {[%clk 0:02:44.2]} 26. Bd2 {[%clk 0:01:40.8]}
26... b6 {[%clk 0:02:38.7]} 27. Kg2 {[%clk 0:01:40.3]} 27... Rf5 {[%clk
0:02:38.8]} 28. Qg4 {[%clk 0:01:36.5]} 28... Nc7 {[%clk 0:02:27.9]} 29. h4
{[%clk 0:01:35.1]} 29... Ne8 {[%clk 0:02:27.3]} 30. Bc3 {[%clk 0:01:34.4]} 30...
h5 {[%clk 0:02:22.9]} 31. Qg6 {[%clk 0:01:28.5]} 31... Rf3 {[%clk 0:02:22]} 32.
Qxh5 {[%clk 0:01:19.7]} 32... R7f5 {[%clk 0:02:20.4]} 33. Qxf3 {[%clk
0:01:18.6]} 33... Rxf3 {[%clk 0:02:20.1]} 34. Kxf3 {[%clk 0:01:18.9]} 34... Kf7
{[%clk 0:02:20.1]} 35. Kg2 {[%clk 0:01:15.3]} 35... Bd8 {[%clk 0:02:20]} 36. Kh3
{[%clk 0:01:14.6]} 36... a6 {[%clk 0:02:19.9]} 37. g4 {[%clk 0:01:13.3]} 37...
Nc7 {[%clk 0:02:17.3]} 38. g5 {[%clk 0:01:12.7]} 38... b5 {[%clk 0:02:17.9]} 39.
Kg4 {[%clk 0:01:12.6]} 39... Na8 {[%clk 0:02:17.9]} 40. h5 {[%clk 0:01:04.2]}
40... Nb6 {[%clk 0:02:18.1]} 41. g6+ {[%clk 0:01:03.2]} 41... Kf8 {[%clk
0:02:17.7]} 42. h6 {[%clk 0:00:58.2]} 42... gxh6 {[%clk 0:02:17.7]} 43. g7+
{[%clk 0:00:57.8]} 43... Kf7 {[%clk 0:02:18.1]} 44. Re8 {[%clk 0:00:56.2]} 1-0

[Event "Late-Titled-Tuesday-Blitz-July-09-2024"]
[Site "Chess.com"]
[Date "2024.07.09"]
[Round "6"]
[White "ArtemDyachuk"]
[Black "i_like_explosions"]
[Result "0-1"]
[WhiteElo "2677"]
[BlackElo "2551"]
[TimeControl "180+1"]
[EndTime "15:02:26 PDT"]
[Termination "i_like_explosions won on time"]

1. e4 {[%clk 0:02:57]} 1... c5 {[%clk 0:03:00.3]} 2. Nf3 {[%clk 0:02:56.8]} 2...
Nc6 {[%clk 0:03:00.5]} 3. Bb5 {[%clk 0:02:56.4]} 3... e6 {[%clk 0:03:00.7]} 4.
Bxc6 {[%clk 0:02:56.7]} 4... bxc6 {[%clk 0:03:01.6]} 5. b3 {[%clk 0:02:57.3]}
5... Qc7 {[%clk 0:03:00.8]} 6. O-O {[%clk 0:02:56.5]} 6... Ne7 {[%clk 0:03:01]}
7. d4 {[%clk 0:02:54.3]} 7... cxd4 {[%clk 0:03:01]} 8. Nxd4 {[%clk 0:02:54.8]}
8... e5 {[%clk 0:02:58.9]} 9. Nf3 {[%clk 0:02:52.7]} 9... Ng6 {[%clk 0:02:58.6]}
10. c4 {[%clk 0:02:52.4]} 10... Be7 {[%clk 0:02:56.8]} 11. Nc3 {[%clk
0:02:51.6]} 11... O-O {[%clk 0:02:56.2]} 12. Bg5 {[%clk 0:02:48.1]} 12... Bxg5
{[%clk 0:02:54.9]} 13. Nxg5 {[%clk 0:02:49]} 13... d6 {[%clk 0:02:55.2]} 14. Qd2
{[%clk 0:02:43.9]} 14... h6 {[%clk 0:02:53.3]} 15. Nf3 {[%clk 0:02:43.1]} 15...
f5 {[%clk 0:02:52.8]} 16. Rad1 {[%clk 0:02:38.5]} 16... Rf6 {[%clk 0:02:51.5]}
17. c5 {[%clk 0:02:31.2]} 17... dxc5 {[%clk 0:02:31.2]} 18. Qd8+ {[%clk
0:02:30.1]} 18... Qxd8 {[%clk 0:02:30.8]} 19. Rxd8+ {[%clk 0:02:31]} 19... Rf8
{[%clk 0:02:31.4]} 20. Rfd1 {[%clk 0:02:30.8]} 20... fxe4 {[%clk 0:02:19.3]} 0-1

[Event "Late-Titled-Tuesday-Blitz-July-09-2024"]
[Site "Chess.com"]
[Date "2024.07.09"]
[Round "6"]
[White "Mops_2004"]
[Black "fugadelafuga"]
[Result "1-0"]
[WhiteElo "2743"]
[BlackElo "2451"]
[TimeControl "180+1"]
[EndTime "15:02:27 PDT"]
[Termination "Mops_2004 won by resignation"]

1. f4 {[%clk 0:03:00.9]} 1... c5 {[%clk 0:02:58]} 2. Nf3 {[%clk 0:03:00.2]} 2...
Nc6 {[%clk 0:02:58.4]} 3. g3 {[%clk 0:02:57.1]} 3... g6 {[%clk 0:02:57.5]} 4.
Bg2 {[%clk 0:02:56.8]} 4... Bg7 {[%clk 0:02:58.4]} 5. O-O {[%clk 0:02:56.9]}
5... d6 {[%clk 0:02:58.1]} 6. d3 {[%clk 0:02:55.6]} 6... e6 {[%clk 0:02:53.8]}
7. e4 {[%clk 0:02:54.3]} 7... Nge7 {[%clk 0:02:54.3]} 8. c3 {[%clk 0:02:54.1]}
8... O-O {[%clk 0:02:53.2]} 9. Be3 {[%clk 0:02:54.2]} 9... b6 {[%clk 0:02:52.9]}
10. Re1 {[%clk 0:02:44.4]} 10... Bb7 {[%clk 0:02:44.6]} 11. Bf2 {[%clk
0:02:43.7]} 11... Rc8 {[%clk 0:02:44]} 12. a4 {[%clk 0:02:42.7]} 12... a6 {[%clk
0:02:41.9]} 13. Na3 {[%clk 0:02:42.4]} 13... d5 {[%clk 0:02:38.1]} 14. e5 {[%clk
0:02:38.9]} 14... Qd7 {[%clk 0:02:35.4]} 15. d4 {[%clk 0:02:36.4]} 15... cxd4
{[%clk 0:02:21.5]} 16. Nxd4 {[%clk 0:02:36.2]} 16... Nxd4 {[%clk 0:02:21.7]} 17.
Bxd4 {[%clk 0:02:35.2]} 17... Rc6 {[%clk 0:02:13.4]} 18. Nc2 {[%clk 0:02:34.2]}
18... Nf5 {[%clk 0:02:08.1]} 19. Bf2 {[%clk 0:02:33.8]} 19... a5 {[%clk
0:01:53.2]} 20. g4 {[%clk 0:02:25.9]} 20... Ne7 {[%clk 0:01:51.3]} 21. Nd4
{[%clk 0:02:15.8]} 21... Rcc8 {[%clk 0:01:51.2]} 22. Nb5 {[%clk 0:02:15.6]}
22... Qc6 {[%clk 0:01:48.5]} 23. Na7 {[%clk 0:02:14.2]} 23... Qc4 {[%clk
0:01:46.9]} 24. Nxc8 {[%clk 0:02:09.7]} 24... Rxc8 {[%clk 0:01:39.1]} 25. Qd4
{[%clk 0:02:06.6]} 25... Qxd4 {[%clk 0:01:32.6]} 26. Bxd4 {[%clk 0:02:06.3]}
26... Ba6 {[%clk 0:01:29.4]} 27. Bf1 {[%clk 0:02:05.8]} 27... Bxf1 {[%clk
0:01:28.7]} 28. Kxf1 {[%clk 0:02:06]} 28... Rb8 {[%clk 0:01:27.6]} 29. Ke2
{[%clk 0:02:04.5]} 29... Bf8 {[%clk 0:01:25.5]} 30. Kd3 {[%clk 0:02:02.5]} 30...
Nc6 {[%clk 0:01:25.9]} 31. f5 {[%clk 0:01:59]} 31... Bc5 {[%clk 0:01:19.1]} 32.
fxe6 {[%clk 0:01:54.9]} 32... fxe6 {[%clk 0:01:20]} 33. Rf1 {[%clk 0:01:54.9]}
33... Rb7 {[%clk 0:01:19.4]} 34. Rf6 {[%clk 0:01:54.1]} 34... Nd8 {[%clk
0:01:17.9]} 35. Raf1 {[%clk 0:01:52.6]} 35... Be7 {[%clk 0:01:17.6]} 36. R6f2
{[%clk 0:01:50.7]} 36... Bh4 {[%clk 0:01:07.2]} 37. Rf8+ {[%clk 0:01:49.6]} 1-0

[Event "Late-Titled-Tuesday-Blitz-July-09-2024"]
[Site "Chess.com"]
[Date "2024.07.09"]
[Round "6"]
[White "AlexTruskavetsky"]
[Black "Vladimir_Zakhartsov"]
[Result "0-1"]
[WhiteElo "2701"]
[BlackElo "2904"]
[TimeControl "180+1"]
[EndTime "15:02:32 PDT"]
[Termination "Vladimir_Zakhartsov won by resignation"]

1. d4 {[%clk 0:03:00.9]} 1... Nf6 {[%clk 0:02:59.2]} 2. c4 {[%clk 0:02:59.6]}
2... e6 {[%clk 0:02:59.7]} 3. Nc3 {[%clk 0:02:59.3]} 3... c5 {[%clk 0:02:59.1]}
4. d5 {[%clk 0:02:57.7]} 4... exd5 {[%clk 0:03:00]} 5. cxd5 {[%clk 0:02:58.6]}
5... d6 {[%clk 0:03:00.7]} 6. e4 {[%clk 0:02:58.5]} 6... g6 {[%clk 0:03:01]} 7.
f4 {[%clk 0:02:47.7]} 7... Bg7 {[%clk 0:03:00.6]} 8. Bb5+ {[%clk 0:02:47.4]}
8... Nfd7 {[%clk 0:03:01.2]} 9. a4 {[%clk 0:02:46.6]} 9... O-O {[%clk
0:03:00.8]} 10. Nf3 {[%clk 0:02:46.6]} 10... Na6 {[%clk 0:03:00]} 11. O-O {[%clk
0:02:46.2]} 11... Nb4 {[%clk 0:02:59.5]} 12. Nd2 {[%clk 0:02:42.6]} 12... f5
{[%clk 0:02:43.9]} 13. exf5 {[%clk 0:02:39.1]} 13... gxf5 {[%clk 0:02:43.2]} 14.
Nf3 {[%clk 0:02:34.7]} 14... Nf6 {[%clk 0:02:39.6]} 15. Re1 {[%clk 0:02:22.9]}
15... a6 {[%clk 0:02:38.8]} 16. Bc4 {[%clk 0:02:19.6]} 16... Re8 {[%clk
0:02:38.8]} 17. Ng5 {[%clk 0:02:15.7]} 17... Rxe1+ {[%clk 0:02:37.1]} 18. Qxe1
{[%clk 0:02:15.8]} 18... Nc2 {[%clk 0:02:37.2]} 19. Qh4 {[%clk 0:02:12.7]} 19...
Nxa1 {[%clk 0:02:29.3]} 20. Ne6 {[%clk 0:02:12.8]} 20... Bxe6 {[%clk 0:02:10]}
21. dxe6 {[%clk 0:02:13.7]} 21... d5 {[%clk 0:02:10.5]} 22. Nxd5 {[%clk
0:02:11.6]} 22... Nxd5 {[%clk 0:02:05]} 23. e7 {[%clk 0:02:10.9]} 23... Qd7
{[%clk 0:02:04.8]} 24. Qh5 {[%clk 0:02:10.6]} 24... Qxe7 {[%clk 0:01:51.7]} 25.
Bxd5+ {[%clk 0:02:09.7]} 25... Kh8 {[%clk 0:01:52]} 26. Bd2 {[%clk 0:02:07.8]}
26... Rd8 {[%clk 0:01:40.1]} 27. Qxf5 {[%clk 0:01:51.5]} 27... Qd7 {[%clk
0:01:39.8]} 28. Be6 {[%clk 0:01:19.5]} 28... Qxd2 {[%clk 0:01:38.4]} 29. h3
{[%clk 0:01:20.4]} 29... Rf8 {[%clk 0:01:33.8]} 30. Qe4 {[%clk 0:01:14.8]} 30...
Qc1+ {[%clk 0:01:30]} 0-1

[Event "Late-Titled-Tuesday-Blitz-July-09-2024"]
[Site "Chess.com"]
[Date "2024.07.09"]
[Round "6"]
[White "NovakRatko"]
[Black "ninjatrick"]
[Result "0-1"]
[WhiteElo "2356"]
[BlackElo "2493"]
[TimeControl "180+1"]
[EndTime "15:02:35 PDT"]
[Termination "ninjatrick won by resignation"]

1. d4 {[%clk 0:02:56.6]} 1... d5 {[%clk 0:02:51.5]} 2. c4 {[%clk 0:02:56.8]}
2... e6 {[%clk 0:02:51.8]} 3. cxd5 {[%clk 0:02:56.9]} 3... exd5 {[%clk
0:02:52.1]} 4. Nc3 {[%clk 0:02:56.5]} 4... c6 {[%clk 0:02:52.5]} 5. f3 {[%clk
0:02:56.2]} 5... Bd6 {[%clk 0:02:51.5]} 6. g3 {[%clk 0:02:53.3]} 6... Ne7 {[%clk
0:02:46.7]} 7. e4 {[%clk 0:02:53.1]} 7... dxe4 {[%clk 0:02:45.4]} 8. fxe4 {[%clk
0:02:53.2]} 8... O-O {[%clk 0:02:44.7]} 9. e5 {[%clk 0:02:52.3]} 9... Bb4 {[%clk
0:02:44.6]} 10. a3 {[%clk 0:02:51.2]} 10... Bxc3+ {[%clk 0:02:36.1]} 11. bxc3
{[%clk 0:02:50.5]} 11... Bf5 {[%clk 0:02:34.5]} 12. Nf3 {[%clk 0:02:46]} 12...
Nd5 {[%clk 0:02:29]} 13. c4 {[%clk 0:02:36.9]} 13... Nc3 {[%clk 0:02:27.7]} 14.
Qb3 {[%clk 0:02:32.6]} 14... Ne4 {[%clk 0:02:11.7]} 15. Bd3 {[%clk 0:02:22.3]}
15... Nc5 {[%clk 0:02:06.9]} 16. Qc2 {[%clk 0:02:15.5]} 16... Nxd3+ {[%clk
0:02:06.1]} 17. Kf1 {[%clk 0:02:04.8]} 17... Nd7 {[%clk 0:01:59.4]} 18. Nh4
{[%clk 0:02:00.8]} 18... Be4 {[%clk 0:01:54.2]} 19. Rg1 {[%clk 0:01:56.6]} 19...
Qb6 {[%clk 0:01:44]} 20. Be3 {[%clk 0:01:54.4]} 20... N7xe5 {[%clk 0:01:32.1]}
21. c5 {[%clk 0:01:52.3]} 21... Ng4 {[%clk 0:01:30.3]} 22. Bd2 {[%clk
0:01:17.4]} 22... Qa6 {[%clk 0:01:27.4]} 23. Qc3 {[%clk 0:01:03.5]} 23... Nf4+
{[%clk 0:01:25.2]} 0-1

[Event "Late-Titled-Tuesday-Blitz-July-09-2024"]
[Site "Chess.com"]
[Date "2024.07.09"]
[Round "6"]
[White "Love7Unicorn"]
[Black "mishanick"]
[Result "0-1"]
[WhiteElo "2597"]
[BlackElo "3086"]
[TimeControl "180+1"]
[EndTime "15:02:41 PDT"]
[Termination "mishanick won on time"]

1. d4 {[%clk 0:02:58.8]} 1... d5 {[%clk 0:02:50.5]} 2. c4 {[%clk 0:02:59.2]}
2... e6 {[%clk 0:02:50.2]} 3. g3 {[%clk 0:02:59.4]} 3... Nf6 {[%clk 0:02:50.2]}
4. Bg2 {[%clk 0:02:59.4]} 4... Bb4+ {[%clk 0:02:50.9]} 5. Nd2 {[%clk 0:02:59.2]}
5... Nc6 {[%clk 0:02:49.9]} 6. e3 {[%clk 0:02:42.8]} 6... O-O {[%clk 0:02:48.6]}
7. Ne2 {[%clk 0:02:40.5]} 7... e5 {[%clk 0:02:46]} 8. cxd5 {[%clk 0:02:35]} 8...
Nxd5 {[%clk 0:02:45.3]} 9. e4 {[%clk 0:02:31.8]} 9... Nf6 {[%clk 0:02:45.6]} 10.
d5 {[%clk 0:02:31.5]} 10... Ne7 {[%clk 0:02:45.8]} 11. Nc3 {[%clk 0:02:28.8]}
11... c6 {[%clk 0:02:45.5]} 12. dxc6 {[%clk 0:02:13.9]} 12... Nxc6 {[%clk
0:02:44.6]} 13. O-O {[%clk 0:02:10.6]} 13... Bxc3 {[%clk 0:02:44.8]} 14. bxc3
{[%clk 0:02:10.4]} 14... Be6 {[%clk 0:02:45.5]} 15. a4 {[%clk 0:01:55.9]} 15...
Qd3 {[%clk 0:02:42.5]} 16. Qf3 {[%clk 0:01:36.1]} 16... Rfd8 {[%clk 0:02:39.6]}
17. Rb1 {[%clk 0:01:31.3]} 17... b6 {[%clk 0:02:37.7]} 18. Re1 {[%clk
0:01:14.2]} 18... Qc2 {[%clk 0:02:37]} 19. Bf1 {[%clk 0:00:18.9]} 19... Rac8
{[%clk 0:02:20.2]} 20. Bb5 {[%clk 0:00:15.4]} 20... Na5 {[%clk 0:02:15]} 21. Rb2
{[%clk 0:00:03.1]} 21... Qxc3 {[%clk 0:02:15]} 22. Qxc3 {[%clk 0:00:03.4]} 22...
Rxc3 {[%clk 0:02:15.8]} 23. Nf1 {[%clk 0:00:02.3]} 23... Nxe4 {[%clk 0:02:11.4]}
24. Rxe4 {[%clk 0:00:02]} 24... Rxc1 {[%clk 0:02:11.3]} 0-1

[Event "Late-Titled-Tuesday-Blitz-July-09-2024"]
[Site "Chess.com"]
[Date "2024.07.09"]
[Round "6"]
[White "Gzucaritas"]
[Black "sari07"]
[Result "1-0"]
[WhiteElo "2077"]
[BlackElo "2366"]
[TimeControl "180+1"]
[EndTime "15:02:41 PDT"]
[Termination "Gzucaritas won by resignation"]

1. e4 {[%clk 0:02:58.8]} 1... Nf6 {[%clk 0:03:00.9]} 2. e5 {[%clk 0:02:58.4]}
2... Nd5 {[%clk 0:03:01.4]} 3. d4 {[%clk 0:02:58.8]} 3... d6 {[%clk 0:03:01.9]}
4. c4 {[%clk 0:02:58.8]} 4... Nb6 {[%clk 0:03:02.5]} 5. exd6 {[%clk 0:02:59.2]}
5... exd6 {[%clk 0:03:03]} 6. Bd3 {[%clk 0:02:59.3]} 6... Nc6 {[%clk 0:03:01.1]}
7. Ne2 {[%clk 0:02:59.3]} 7... Be7 {[%clk 0:03:00.2]} 8. b3 {[%clk 0:02:57.5]}
8... O-O {[%clk 0:02:54.7]} 9. Bb2 {[%clk 0:02:57.5]} 9... Re8 {[%clk
0:02:39.4]} 10. O-O {[%clk 0:02:57.2]} 10... Bf6 {[%clk 0:02:38]} 11. Qc2 {[%clk
0:02:57.1]} 11... Nb4 {[%clk 0:02:15.3]} 12. Qd2 {[%clk 0:02:51.7]} 12... Nxd3
{[%clk 0:02:12.3]} 13. Qxd3 {[%clk 0:02:52.3]} 13... c5 {[%clk 0:02:04.6]} 14.
Nd2 {[%clk 0:02:47.8]} 14... d5 {[%clk 0:01:59.8]} 15. Rad1 {[%clk 0:02:32.7]}
15... Bg4 {[%clk 0:01:53.4]} 16. f3 {[%clk 0:02:23.6]} 16... Bh5 {[%clk
0:01:40.1]} 17. Nf4 {[%clk 0:02:10]} 17... Bg6 {[%clk 0:01:40.3]} 18. Nxg6
{[%clk 0:02:09.1]} 18... hxg6 {[%clk 0:01:41.2]} 19. cxd5 {[%clk 0:01:54.3]}
19... cxd4 {[%clk 0:01:13.1]} 20. Ne4 {[%clk 0:01:50.1]} 20... Qxd5 {[%clk
0:01:12.6]} 21. Nxf6+ {[%clk 0:01:46.4]} 21... gxf6 {[%clk 0:01:13.5]} 22. Qxd4
{[%clk 0:01:43.7]} 22... Re2 {[%clk 0:01:07.5]} 23. Qxf6 {[%clk 0:01:31.3]}
23... Qc5+ {[%clk 0:00:56.2]} 24. Bd4 {[%clk 0:01:23.9]} 1-0

[Event "Late-Titled-Tuesday-Blitz-July-09-2024"]
[Site "Chess.com"]
[Date "2024.07.09"]
[Round "6"]
[White "cthake"]
[Black "Vaporwaffle94"]
[Result "0-1"]
[WhiteElo "1827"]
[BlackElo "2279"]
[TimeControl "180+1"]
[EndTime "15:02:53 PDT"]
[Termination "Vaporwaffle94 won by resignation"]

1. e4 {[%clk 0:02:57.9]} 1... e6 {[%clk 0:03:00.9]} 2. d4 {[%clk 0:02:56.6]}
2... d5 {[%clk 0:03:01.8]} 3. exd5 {[%clk 0:02:56.8]} 3... exd5 {[%clk
0:03:01.9]} 4. Nf3 {[%clk 0:02:55.6]} 4... Bd6 {[%clk 0:03:02.4]} 5. Bd3 {[%clk
0:02:55.5]} 5... Ne7 {[%clk 0:03:02.8]} 6. O-O {[%clk 0:02:55.3]} 6... Bf5
{[%clk 0:03:03.3]} 7. Re1 {[%clk 0:02:53.8]} 7... Bxd3 {[%clk 0:03:02.4]} 8.
Qxd3 {[%clk 0:02:53.2]} 8... O-O {[%clk 0:03:03.1]} 9. Bg5 {[%clk 0:02:51.4]}
9... f6 {[%clk 0:03:03.6]} 10. Bh4 {[%clk 0:02:49.9]} 10... Ng6 {[%clk
0:03:02.1]} 11. Bg3 {[%clk 0:02:48.9]} 11... Nf4 {[%clk 0:03:02.8]} 12. Bxf4
{[%clk 0:02:42.9]} 12... Bxf4 {[%clk 0:03:03.7]} 13. Nbd2 {[%clk 0:02:39.3]}
13... c6 {[%clk 0:03:02.8]} 14. Nf1 {[%clk 0:02:38]} 14... Bc7 {[%clk
0:03:03.2]} 15. Qf5 {[%clk 0:02:34.6]} 15... Qd7 {[%clk 0:03:02.6]} 16. Qxd7
{[%clk 0:02:29.7]} 16... Nxd7 {[%clk 0:03:03.5]} 17. Re7 {[%clk 0:02:29.1]}
17... Rad8 {[%clk 0:03:04]} 18. c3 {[%clk 0:02:25.1]} 18... Bd6 {[%clk 0:03:04]}
19. Re2 {[%clk 0:02:23.1]} 19... Rfe8 {[%clk 0:03:03.7]} 20. Rae1 {[%clk
0:02:22.5]} 20... Kf7 {[%clk 0:03:03.6]} 21. Ng3 {[%clk 0:02:20.5]} 21... g6
{[%clk 0:03:03.2]} 22. Rxe8 {[%clk 0:02:17.2]} 22... Rxe8 {[%clk 0:03:03]} 23.
Rxe8 {[%clk 0:02:15.6]} 23... Kxe8 {[%clk 0:03:03.9]} 24. Kf1 {[%clk 0:02:14.9]}
24... h5 {[%clk 0:03:03.2]} 25. Nh4 {[%clk 0:02:08.1]} 25... Kf7 {[%clk
0:03:01.9]} 26. Ke2 {[%clk 0:02:00.8]} 26... f5 {[%clk 0:03:01.5]} 27. Nf3
{[%clk 0:01:57.5]} 27... Kf6 {[%clk 0:03:01.8]} 28. Nf1 {[%clk 0:01:47.7]} 28...
g5 {[%clk 0:03:01]} 29. g3 {[%clk 0:01:30.6]} 29... b5 {[%clk 0:02:58.9]} 30.
N1d2 {[%clk 0:01:25.4]} 30... f4 {[%clk 0:02:58.3]} 31. Ne1 {[%clk 0:01:21.1]}
31... Kf5 {[%clk 0:02:57.8]} 32. Nd3 {[%clk 0:01:08.7]} 32... Kg4 {[%clk
0:02:57]} 33. Nf1 {[%clk 0:00:57.8]} 33... f3+ {[%clk 0:02:52.7]} 34. Kd2 {[%clk
0:00:43.6]} 34... Kh3 {[%clk 0:02:51.7]} 35. Nb4 {[%clk 0:00:35.6]} 35... Bxb4
{[%clk 0:02:49.7]} 36. cxb4 {[%clk 0:00:35.4]} 36... Kg2 {[%clk 0:02:50.6]} 37.
Ke1 {[%clk 0:00:32.2]} 37... Nf6 {[%clk 0:02:48.6]} 38. h4 {[%clk 0:00:15.3]}
38... g4 {[%clk 0:02:45.4]} 39. Ne3+ {[%clk 0:00:14.4]} 39... Kg1 {[%clk
0:02:45]} 40. Nf5 {[%clk 0:00:13.8]} 40... Ne4 {[%clk 0:02:44.4]} 41. Ne7 {[%clk
0:00:13.8]} 41... Nxf2 {[%clk 0:02:44.3]} 42. Nxc6 {[%clk 0:00:13.9]} 42... Nd3+
{[%clk 0:02:45.2]} 43. Kd2 {[%clk 0:00:08.1]} 43... f2 {[%clk 0:02:46.1]} 44.
Kxd3 {[%clk 0:00:04]} 44... f1=Q+ {[%clk 0:02:47]} 45. Ke3 {[%clk 0:00:03.4]}
45... Qf3+ {[%clk 0:02:46]} 0-1

[Event "Late-Titled-Tuesday-Blitz-July-09-2024"]
[Site "Chess.com"]
[Date "2024.07.09"]
[Round "6"]
[White "temus_galaktionov"]
[Black "DanielNaroditsky"]
[Result "0-1"]
[WhiteElo "2832"]
[BlackElo "3092"]
[TimeControl "180+1"]
[EndTime "15:03:11 PDT"]
[Termination "DanielNaroditsky won by resignation"]

1. d4 {[%clk 0:03:00.9]} 1... Nf6 {[%clk 0:03:00.2]} 2. c4 {[%clk 0:03:00.7]}
2... g6 {[%clk 0:03:00.8]} 3. Nf3 {[%clk 0:03:00.5]} 3... Bg7 {[%clk 0:03:01.5]}
4. Nc3 {[%clk 0:02:59.2]} 4... d6 {[%clk 0:03:02.2]} 5. e4 {[%clk 0:02:59.3]}
5... O-O {[%clk 0:03:02.4]} 6. Be2 {[%clk 0:03:00.2]} 6... Na6 {[%clk
0:03:02.8]} 7. O-O {[%clk 0:03:00.3]} 7... e5 {[%clk 0:03:03.4]} 8. Be3 {[%clk
0:03:00.9]} 8... Qe7 {[%clk 0:03:03.3]} 9. dxe5 {[%clk 0:03:00.6]} 9... dxe5
{[%clk 0:03:04.2]} 10. Nd5 {[%clk 0:03:00.9]} 10... Qd8 {[%clk 0:03:04.9]} 11.
Qc2 {[%clk 0:03:01]} 11... Ng4 {[%clk 0:03:05.4]} 12. Bd2 {[%clk 0:02:43]} 12...
c6 {[%clk 0:03:04.7]} 13. Ne3 {[%clk 0:02:41.4]} 13... Nxe3 {[%clk 0:02:57]} 14.
Bxe3 {[%clk 0:02:42.3]} 14... c5 {[%clk 0:02:57.9]} 15. Rfd1 {[%clk 0:02:37.6]}
15... Qe7 {[%clk 0:02:58.3]} 16. a3 {[%clk 0:02:24.5]} 16... b6 {[%clk
0:02:58.6]} 17. Qa4 {[%clk 0:02:20.7]} 17... Nc7 {[%clk 0:02:54.2]} 18. b4
{[%clk 0:02:19.4]} 18... Ne6 {[%clk 0:02:54.2]} 19. bxc5 {[%clk 0:02:09.4]}
19... bxc5 {[%clk 0:02:55.1]} 20. Rab1 {[%clk 0:02:07.6]} 20... Nd4 {[%clk
0:02:55.1]} 21. Nxd4 {[%clk 0:01:58.9]} 21... exd4 {[%clk 0:02:56]} 22. Bf4
{[%clk 0:01:56]} 22... Bd7 {[%clk 0:02:35.8]} 23. Qc2 {[%clk 0:01:39]} 23... Bc6
{[%clk 0:02:36.3]} 24. Bf3 {[%clk 0:01:39.2]} 24... g5 {[%clk 0:02:24.7]} 25.
Bg3 {[%clk 0:01:36.7]} 25... Rfe8 {[%clk 0:02:02.8]} 26. Re1 {[%clk 0:01:32.6]}
26... f5 {[%clk 0:02:03.2]} 27. Bh5 {[%clk 0:01:26.2]} 27... f4 {[%clk
0:02:03.6]} 28. Bxe8 {[%clk 0:01:25.3]} 28... Rxe8 {[%clk 0:02:04.5]} 29. f3
{[%clk 0:01:22.9]} 29... fxg3 {[%clk 0:02:04.7]} 30. hxg3 {[%clk 0:01:23.8]}
30... Be5 {[%clk 0:02:05.3]} 31. g4 {[%clk 0:01:20]} 31... Qf6 {[%clk
0:02:02.8]} 32. Kf2 {[%clk 0:01:18.8]} 32... Qf4 {[%clk 0:02:02.2]} 33. Rh1
{[%clk 0:01:16.4]} 33... d3 {[%clk 0:02:00.7]} 34. Qxd3 {[%clk 0:01:12.7]} 34...
Bxe4 {[%clk 0:02:01.3]} 35. Qe2 {[%clk 0:00:19.3]} 35... Bxb1 {[%clk 0:02:00]}
36. Kf1 {[%clk 0:00:07.2]} 36... Qc1+ {[%clk 0:02:00.4]} 37. Qe1 {[%clk
0:00:06.5]} 37... Bd3+ {[%clk 0:02:00.8]} 0-1